fUST/lending_fUST_20260331
["ID","MTS","AMOUNT","RATE_DAILY","PERIOD"]
[419149743,1774944989297,-230.0,0.00046575,120]
[419149744,1774944989326,-175.0,0.00046575,120]
[419149745,1774944989356,-168.0,0.000466,120]
[419149746,1774944989386,-76333.0,0.000466,120]
[419149747,1774944989416,-60000.0,0.000468,120]
[419149748,1774944989449,-154.0,0.000468,120]
[419149749,1774944989478,-451.0,0.00046849,36]
[419149750,1774944989507,-2000.0,0.000469,120]
[419149751,1774944989538,-2100.0,0.000469,120]
[419149752,1774944989571,-472.88445203,0.00046973,120]
[419149753,1774944989603,-500.0,0.00047,120]
[419149754,1774944989633,-150.0,0.00047,120]
[419149755,1774944989663,-1000.0,0.00047,120]
[419149756,1774944989694,-20000.0,0.00047,120]
[419149757,1774944989814,-168.0,0.00047,120]
[419149758,1774944989848,-469239.84391212,0.00047293,120]
[419149759,1774944989880,-621123.33342243,0.00047352,120]
[419149760,1774944989910,-451.0,0.00047397,37]
[419149761,1774944989941,-203923.83932164,0.00047423,120]
[419149762,1774944989972,-168.0,0.000475,120]
[419149763,1774944990002,-10000.0,0.000475,120]
[419149764,1774944990035,-168.0,0.000475,120]
[419149765,1774944990065,-200.0,0.00047805,120]
[419149766,1774944990093,-1500.0,0.000479,120]
[419149767,1774944990125,-2100.0,0.000479,120]
[419149768,1774944990156,-451.0,0.00047945,38]
[419149769,1774944990187,-230.0,0.00047945,30]
[419149770,1774944990218,-232.0,0.00047945,30]
[419149771,1774944990247,-173.0,0.00047945,30]
[419149772,1774944990278,-235.0,0.00047945,30]
[419149773,1774944990307,-177.0,0.00047945,30]
[419149774,1774944990341,-181.0,0.00047945,30]
[419149775,1774944990377,-225.0,0.00047945,30]
[419149776,1774944990409,-176.0,0.00047945,30]
[419149777,1774944990440,-230.0,0.00047945,30]
[419149778,1774944990471,-175.0,0.00047945,30]
[419149779,1774944990503,-500.0,0.00048,120]
[419149780,1774944990533,-1000.0,0.00048,30]
[419149781,1774944990564,-5642.7009913,0.00048,35]
[419149782,1774944990594,-10000.0,0.00048,50]
[419149783,1774944990626,-20000.0,0.00048,120]
[419149784,1774944990658,-168.0,0.00048,120]
[419149785,1774944990691,-895.52433062,0.00048143,120]
[419149786,1774944990721,-4494.87001039,0.0004826,120]
[419149787,1774944990754,-3551.10492077,0.00048398,120]
[419149788,1774944990784,-168.0,0.000484,120]
[419149789,1774944990814,-949.53,0.00048476,120]
[419149790,1774944990845,-500.0,0.00048493,120]
[419149791,1774944990875,-451.0,0.00048493,39]
[419149792,1774944990904,-500.0,0.00048767,120]
[419149793,1774944990934,-500.0,0.00048767,120]
[419149794,1774944990963,-500.0,0.00048767,120]
[419149795,1774944990992,-500.0,0.00048767,120]
[419149796,1774944991022,-500.0,0.00048767,120]
[419149797,1774944991051,-500.0,0.00048767,120]
[419149798,1774944991080,-500.0,0.00048767,120]
[419149799,1774944991109,-500.0,0.00048767,120]
[419149800,1774944991139,-500.0,0.00048767,120]
[419149801,1774944991169,-500.0,0.00048767,120]
[419149802,1774944991198,-380.40075768,0.00048767,120]
[419149803,1774944991228,-5000.0,0.000488,95]
[419149804,1774944991258,-60000.0,0.000488,120]
[419149805,1774944991287,-2000.0,0.000489,120]
[419149806,1774944991317,-200000.0,0.000489,120]
[419149807,1774944991346,-2100.0,0.000489,120]
[419149808,1774944991379,-168.0,0.000489,120]
[419149809,1774944991410,-500.0,0.00048904,30]
[419149810,1774944991440,-500.0,0.00048904,30]
[419149811,1774944991469,-210.0,0.00049,120]
[419149812,1774944991498,-2000.0,0.00049,120]
[419149813,1774944991527,-150.0,0.00049,120]
[419149814,1774944991556,-1000.0,0.00049,120]
[419149815,1774944991588,-17352.60588717,0.00049,120]
[419149816,1774945000309,-195.0,0.00034594,30]
[419149817,1774945000354,-452.30119022,0.0004,60]
[419149818,1774945000387,-152193.91285156,0.00049,120]
[419149819,1774945000417,-191232.48003356,0.00049,120]
[419149820,1774945000446,-9573.61919093,0.00049,60]
[419149821,1774945000475,-3000.0,0.00049,80]
[419149822,1774945000505,-451.0,0.00049041,40]
[419149823,1774945000535,-168.0,0.000493,120]
[419149824,1774945000566,-1318.16420922,0.00049312,120]
[419149825,1774945000597,-10000.0,0.00049315,120]
[419149826,1774945000627,-10000.0,0.00049315,120]
[419149827,1774945000655,-466.64763156,0.00049315,120]
[419149828,1774945000683,-1000.0,0.00049315,120]
[419149829,1774945000712,-3000.0,0.00049315,120]
[419149830,1774945000742,-2500.0,0.00049315,120]
[419149831,1774945000772,-2500.0,0.00049315,120]
[419149832,1774945000803,-2000.0,0.00049589,120]
[419149833,1774945000832,-451.0,0.00049589,41]
[419149834,1774945000861,-2000.0,0.000498,120]
[419149835,1774945000891,-168.0,0.000498,120]
[419149836,1774945000920,-1167.84370258,0.00049863,120]
[419149837,1774945000950,-1380.47961068,0.00049898,70]
[419149838,1774945000979,-1500.0,0.000499,120]
[419149839,1774945001008,-2100.0,0.000499,120]
[419149840,1774945001036,-1000.0,0.00049999,120]
[419149841,1774945001163,-561.81174426,0.0005,120]
[419149842,1774945001199,-497.16784006,0.0005,30]
[419149843,1774945001229,-1003.0,0.0005,30]
[419149844,1774945001259,-500.0,0.0005,120]
[419149845,1774945001289,-5000.0,0.0005,30]
[419149846,1774945001318,-10000.0,0.0005,85]
[419149847,1774945001348,-1582619.57199537,0.0005,120]
[419149848,1774945004343,-2000000.0,0.0005,120]
[419149849,1774945008079,-2000000.0,0.0005,120]
[419149850,1774945016625,-353.69,0.00035,120]
[419149851,1774945016676,-1999646.31,0.0005,120]
[419149852,1774945048736,166.91,2.019e-05,2]
[419149853,1774945076654,352.06928742,0.00035087,120]
[419149854,1774945078740,569.0,0.00035087,120]
[419149855,1774945080431,1000.0,0.000326,120]
[419149856,1774945080678,763.0,0.00035087,120]
[419149857,1774945081141,502.785,0.00035087,120]
[419149858,1774945081196,502.785,0.00035087,120]
[419149859,1774945099909,182.32255084,0.00035087,120]
[419149860,1774945099945,168.07218809,0.00035087,120]
[419149861,1774945099989,478.36484911,0.00035087,120]
[419149862,1774945100029,393.65352012,0.00035087,120]
[419149863,1774945100066,174.62263633,0.00035087,120]
[419149864,1774945100251,168.07218809,0.00035087,120]
[419149865,1774945100288,182.32255084,0.00035087,120]
[419149866,1774945100326,174.62263633,0.00035087,120]
[419149867,1774945100362,478.36484911,0.00035087,120]
[419149868,1774945100401,393.65352012,0.00035087,120]
[419149869,1774945100575,182.32255084,0.00035087,120]
[419149870,1774945100611,168.07218809,0.00035087,120]
[419149871,1774945100651,478.36484911,0.00035087,120]
[419149872,1774945100687,174.62263633,0.00035087,120]
[419149873,1774945100726,393.65352012,0.00035087,120]
[419149874,1774945100934,478.36484911,0.00035087,120]
[419149875,1774945100971,393.65352012,0.00035087,120]
[419149876,1774945101177,168.07218809,0.00035087,120]
[419149877,1774945101239,478.36484911,0.00035087,120]
[419149878,1774945101276,393.65352012,0.00035087,120]
[419149879,1774945101312,174.62263633,0.00035087,120]
[419149880,1774945101496,168.07218809,0.00035087,120]
[419149881,1774945101570,478.36484911,0.00035087,120]
[419149882,1774945101607,174.62263633,0.00035087,120]
[419149883,1774945101643,393.65352012,0.00035087,120]
[419149884,1774945101907,168.07218809,0.00035087,120]
[419149885,1774945101944,393.65352012,0.00035087,120]
[419149886,1774945101979,478.36484911,0.00035087,120]
[419149887,1774945102015,174.62263633,0.00035087,120]
[419149888,1774945102087,168.07218809,0.00035087,120]
[419149889,1774945102195,393.65352012,0.00035087,120]
[419149890,1774945102231,478.36484911,0.00035087,120]
[419149891,1774945102517,393.65352012,0.00035087,120]
[419149892,1774945102552,478.36484911,0.00035087,120]
[419149893,1774945102589,174.62263633,0.00035087,120]
[419149894,1774945102817,393.65352012,0.00035087,120]
[419149895,1774945102852,478.36484911,0.00035087,120]
[419149896,1774945102905,174.62263633,0.00035087,120]
[419149897,1774945103108,393.65352012,0.00035087,120]
[419149898,1774945103170,478.36484911,0.00035087,120]
[419149899,1774945103406,393.65352012,0.00035087,120]
[419149900,1774945103480,478.36484911,0.00035087,120]
[419149901,1774945103765,478.36484911,0.00035087,120]
[419149902,1774945103831,393.65352012,0.00035087,120]
[419149903,1774945104059,478.36484911,0.00035087,120]
[419149904,1774945104123,393.65352012,0.00035087,120]
[419149905,1774945104366,478.36484911,0.00035087,120]
[419149906,1774945104423,393.65352012,0.00035087,120]
[419149907,1774945121568,569.0,0.00035087,120]
[419149908,1774945124526,763.0,0.00035087,120]
[419149909,1774945128793,502.785,0.00035087,120]
[419149910,1774945128887,352.06928742,0.00035087,120]
[419149911,1774945128921,502.785,0.00035087,120]
[419149912,1774945135172,573.8333,0.00035087,120]
[419149913,1774945135845,573.8333,0.00035087,120]
[419149914,1774945136289,573.8333,0.00035087,120]
[419149915,1774945136720,573.8333,0.00035087,120]
[419149916,1774945137152,573.8333,0.00035087,120]
[419149917,1774945137581,573.8335,0.00035087,120]
[419149918,1774945145691,197.75114947,0.000324,120]
[419149919,1774945153435,572.59157803,0.000324,120]
[419149920,1774945158055,298.55631414,0.00032876,120]
[419149921,1774945168153,397.93825012,0.000324,120]
[419149923,1774945174317,311.08619097,0.000324,120]
[419149924,1774945177988,765.41804687,0.000324,120]
[419149925,1774945182715,817.89458883,0.000324,120]
[419149926,1774945185279,199.77358294,0.00035087,120]
[419149927,1774945195033,707.51056671,0.000324,120]
[419149928,1774945200641,369.0,0.000326,120]
[419149929,1774945203357,290.63018322,0.00032876,120]
[419149930,1774945204064,611.4907561,0.00032876,120]
[419149931,1774945214484,318.5730092,0.00032876,120]
[419149932,1774945225860,1058.75,0.00032876,120]
[419149933,1774945226145,1058.75,0.00032876,120]
[419149934,1774945226397,1058.75,0.00032876,120]
[419149935,1774945226654,1058.75,0.00032876,120]
[419149936,1774945226881,1058.75,0.00032876,120]
[419149937,1774945227138,1058.75,0.00032876,120]
[419149938,1774945227359,1058.75,0.00032876,120]
[419149939,1774945227578,1058.75,0.00032876,120]
[419149940,1774945227802,1058.75,0.00032876,120]
[419149941,1774945228042,1058.75,0.00032876,120]
[419149942,1774945228265,1058.75,0.00032876,120]
[419149943,1774945228493,1058.75,0.00032876,120]
[419149944,1774945229581,1058.75,0.00032876,120]
[419149945,1774945229823,1058.75,0.00032876,120]
[419149946,1774945230096,1058.75,0.00032876,120]
[419149947,1774945230319,1058.75,0.00032876,120]
[419149948,1774945230351,500.0,0.00032876,120]
[419149949,1774945230545,500.0,0.00032876,120]
[419149950,1774945230577,1058.75,0.00032876,120]
[419149951,1774945230760,500.0,0.00032876,120]
[419149952,1774945230808,1058.75,0.00032876,120]
[419149953,1774945231003,500.0,0.00032876,120]
[419149954,1774945231037,1058.75,0.00032876,120]
[419149955,1774945231218,500.0,0.00032876,120]
[419149956,1774945231291,1058.75,0.00032876,120]
[419149957,1774945231542,1058.75,0.00032876,120]
[419149958,1774945231786,1058.75,0.00032876,120]
[419149959,1774945231818,500.0,0.00032876,120]
[419149960,1774945232009,1058.75,0.00032876,120]
[419149961,1774945232043,500.0,0.00032876,120]
[419149962,1774945232288,1058.87756789,0.00032876,120]
[419149963,1774945232320,504.52714184,0.00032876,120]
[419149964,1774945232855,809.67241654,0.000324,120]
[419149965,1774945247816,1282.88222627,0.000324,120]
[419149966,1774945254811,3018.12,0.00032876,120]
[419149967,1774945255030,3018.12,0.00032876,120]
[419149968,1774945255311,3018.12,0.00032876,120]
[419149969,1774945255544,3018.12,0.00032876,120]
[419149970,1774945255805,3018.12,0.00032876,120]
[419149971,1774945256028,3018.12,0.00032876,120]
[419149972,1774945256254,3018.12,0.00032876,120]
[419149973,1774945256512,3018.12,0.00032876,120]
[419149974,1774945256730,3018.12,0.00032876,120]
[419149975,1774945256959,3018.12,0.00032876,120]
[419149976,1774945257192,3018.12,0.00032876,120]
[419149977,1774945257425,3018.12,0.00032876,120]
[419149978,1774945257711,3018.12,0.00032876,120]
[419149979,1774945257951,3018.12,0.00032876,120]
[419149980,1774945258203,3018.12,0.00032876,120]
[419149981,1774945258433,3018.12,0.00032876,120]
[419149982,1774945258661,3018.12,0.00032876,120]
[419149983,1774945258887,3018.12,0.00032876,120]
[419149984,1774945259215,3018.12,0.00032876,120]
[419149985,1774945259475,3018.12,0.00032876,120]
[419149986,1774945259765,3018.12,0.00032876,120]
[419149987,1774945259993,3018.12,0.00032876,120]
[419149988,1774945260217,3018.12,0.00032876,120]
[419149989,1774945260472,3018.24633395,0.00032876,120]
[419149990,1774945263036,600.13722517,0.00032876,120]
[419149991,1774945267030,481.27477365,0.00032876,120]
[419149992,1774945268904,300.0,0.00032631,120]
[419149993,1774945270606,324.55462094,0.00032876,120]
[419149994,1774945271158,401.47483128,0.00032631,120]
[419149995,1774945278885,151.63586936,0.00032876,120]
[419149996,1774945290470,177.75265113,0.00032876,120]
[419149997,1774945295425,156.95017757,0.00032876,120]
[419149998,1774945310791,177.85174995,0.00032876,120]
[419149999,1774945319070,500.0,0.00032876,120]
[419150000,1774945319498,500.0,0.00032876,120]
[419150001,1774945319757,500.0,0.00032876,120]
[419150002,1774945319979,500.0,0.00032876,120]
[419150003,1774945320328,500.0,0.00032876,120]
[419150004,1774945320433,500.0,0.00032876,120]
[419150005,1774945320681,500.0,0.00032876,120]
[419150006,1774945320908,500.0,0.00032876,120]
[419150007,1774945321192,500.0,0.00032876,120]
[419150008,1774945321413,500.0,0.00032876,120]
[419150009,1774945321544,302.80916532,0.00032876,120]
[419150010,1774945321702,500.0,0.00032876,120]
[419150011,1774945321951,500.0,0.00032876,120]
[419150012,1774945322264,500.0,0.00032876,120]
[419150013,1774945322561,500.0,0.00032876,120]
[419150014,1774945322787,429.27237137,0.00032876,120]
[419150015,1774945323335,153.90605855,0.00032876,120]
[419150016,1774945328218,157.00321555,0.00032876,120]
[419150017,1774945331144,152.40157575,0.00032876,120]
[419150018,1774945340044,524.87136016,0.00035548,120]
[419150019,1774945340078,562.7914033,0.00035548,120]
[419150020,1774945340112,195.96830545,0.00035548,120]
[419150021,1774945340145,171.63949656,0.00035548,120]
[419150022,1774945340177,238.49312704,0.00035548,120]
[419150023,1774945340378,171.63949656,0.00035548,120]
[419150024,1774945340411,195.96830545,0.00035548,120]
[419150025,1774945340445,562.7914033,0.00035548,120]
[419150026,1774945340485,524.87136016,0.00035548,120]
[419150027,1774945340517,238.49312704,0.00035548,120]
[419150028,1774945340728,195.96830545,0.00035548,120]
[419150029,1774945340760,562.7914033,0.00035548,120]
[419150030,1774945340792,171.63949656,0.00035548,120]
[419150031,1774945340827,524.87136016,0.00035548,120]
[419150032,1774945341034,195.96830545,0.00035548,120]
[419150033,1774945341067,562.7914033,0.00035548,120]
[419150034,1774945341097,171.63949656,0.00035548,120]
[419150035,1774945341131,524.87136016,0.00035548,120]
[419150036,1774945341376,195.96830545,0.00035548,120]
[419150037,1774945341408,171.63949656,0.00035548,120]
[419150038,1774945341442,524.87136016,0.00035548,120]
[419150039,1774945341475,562.7914033,0.00035548,120]
[419150040,1774945341683,195.96830545,0.00035548,120]
[419150041,1774945341716,562.7914033,0.00035548,120]
[419150042,1774945341855,171.63949656,0.00035548,120]
[419150043,1774945341890,524.87136016,0.00035548,120]
[419150044,1774945342005,195.96830545,0.00035548,120]
[419150045,1774945342037,171.63949656,0.00035548,120]
[419150046,1774945342073,562.7914033,0.00035548,120]
[419150047,1774945342108,524.87136016,0.00035548,120]
[419150048,1774945342348,171.63949656,0.00035548,120]
[419150049,1774945342382,524.87136016,0.00035548,120]
[419150050,1774945342415,562.7914033,0.00035548,120]
[419150051,1774945342647,562.7914033,0.00035548,120]
[419150052,1774945342745,524.87136016,0.00035548,120]
[419150053,1774945342936,524.87136016,0.00035548,120]
[419150054,1774945342970,562.7914033,0.00035548,120]
[419150055,1774945343286,524.87136016,0.00035548,120]
[419150056,1774945343327,562.7914033,0.00035548,120]
[419150057,1774945343604,524.87136016,0.00035548,120]
[419150058,1774945343901,524.87136016,0.00035548,120]
[419150059,1774945344206,524.87136016,0.00035548,120]
[419150060,1774945344826,524.87136016,0.00035548,120]
[419150061,1774945350241,159.6986316,0.00032876,120]
[419150062,1774945352462,174.93188399,0.00032876,120]
[419150063,1774945352854,562.7914033,0.00035548,120]
[419150064,1774945353106,562.7914033,0.00035548,120]
[419150065,1774945353181,245.09489573,0.00032876,120]
[419150066,1774945353441,562.7914033,0.00035548,120]
[419150067,1774945355364,178.98325243,0.00032876,120]
[419150068,1774945380006,193.10337611,0.000324,120]
[419150069,1774945381535,210.84405094,0.000324,120]
[419150070,1774945390295,178.79733308,0.000324,120]
[419150071,1774945402666,500.0,0.00032876,120]
[419150072,1774945402898,500.0,0.00032876,120]
[419150073,1774945403283,500.0,0.00032876,120]
[419150074,1774945403474,500.0,0.00032876,120]
[419150075,1774945403761,500.0,0.00032876,120]
[419150076,1774945403959,500.0,0.00032876,120]
[419150077,1774945404207,500.0,0.00032876,120]
[419150078,1774945404463,500.0,0.00032876,120]
[419150079,1774945404711,500.0,0.00032876,120]
[419150080,1774945404963,500.0,0.00032876,120]
[419150081,1774945405315,284.78972317,0.00032876,120]
[419150082,1774945427165,518.0731172,0.00032876,120]
[419150083,1774945432017,163.61157269,0.00032876,120]
[419150084,1774945459683,187.59713442,0.00035548,120]
[419150085,1774945459712,207.63870694,0.000324,120]
[419150086,1774945459742,238.49312703,0.00035548,120]
[419150087,1774945459948,195.96830543,0.00035548,120]
[419150088,1774945459996,187.59713442,0.00035548,120]
[419150089,1774945460306,187.59713442,0.00035548,120]
[419150090,1774945467646,458.07326242,0.000324,120]
[419150091,1774945482403,318.35060009,0.000324,120]
[419150092,1774945486688,500.0,0.00032876,120]
[419150093,1774945486915,500.0,0.00032876,120]
[419150094,1774945487176,500.0,0.00032876,120]
[419150095,1774945487447,500.0,0.00032876,120]
[419150096,1774945487671,500.0,0.00032876,120]
[419150097,1774945487935,508.79173085,0.00032876,120]
[419150098,1774945488561,248.86895278,0.000324,120]
[419150099,1774945491833,612.33443749,0.000324,120]
[419150100,1774945492090,875.76,0.00032876,120]
[419150101,1774945492345,875.76,0.00032876,120]
[419150102,1774945492576,875.76,0.00032876,120]
[419150103,1774945492808,875.76,0.00032876,120]
[419150104,1774945493041,875.76,0.00032876,120]
[419150105,1774945493266,875.76,0.00032876,120]
[419150106,1774945493500,875.76,0.00032876,120]
[419150107,1774945493729,875.76,0.00032876,120]
[419150108,1774945493979,875.76,0.00032876,120]
[419150109,1774945494330,875.76,0.00032876,120]
[419150110,1774945494615,875.76,0.00032876,120]
[419150111,1774945495051,875.76,0.00032876,120]
[419150112,1774945495091,875.76,0.00032876,120]
[419150113,1774945495346,875.76,0.00032876,120]
[419150114,1774945495593,875.76,0.00032876,120]
[419150115,1774945495838,875.76,0.00032876,120]
[419150116,1774945496091,875.76,0.00032876,120]
[419150117,1774945496320,875.76,0.00032876,120]
[419150118,1774945496587,875.76,0.00032876,120]
[419150119,1774945496811,654.31567106,0.000324,120]
[419150120,1774945496843,875.76,0.00032876,120]
[419150121,1774945497086,875.76,0.00032876,120]
[419150122,1774945497337,875.76,0.00032876,120]
[419150123,1774945497588,875.76,0.00032876,120]
[419150124,1774945497820,875.92516299,0.00032876,120]
[419150125,1774945507008,500.0,0.00032876,120]
[419150126,1774945509872,566.00845337,0.000324,120]
[419150127,1774945542391,500.0,0.00032876,120]
[419150128,1774945545221,500.0,0.00032876,120]
[419150129,1774945545437,500.0,0.00032876,120]
[419150130,1774945545678,165.68257115,0.00032876,120]
[419150131,1774945546779,647.73793323,0.000324,120]
[419150132,1774945553048,500.0,0.00032876,120]
[419150133,1774945553300,500.0,0.00032876,120]
[419150134,1774945553519,500.0,0.00032876,120]
[419150135,1774945553744,500.0,0.00032876,120]
[419150136,1774945553996,500.0,0.00032876,120]
[419150137,1774945554226,500.0,0.00032876,120]
[419150138,1774945554482,500.0,0.00032876,120]
[419150139,1774945554870,402.06714986,0.00032876,120]
[419150140,1774945561633,1026.30578102,0.000324,120]
[419150142,1774945607788,442.27943772,0.00032876,120]
[419150143,1774945617539,239.11496364,0.0003555,120]
[419150144,1774945617946,239.11496364,0.0003555,120]
[419150145,1774945618202,239.11496364,0.0003555,120]
[419150147,1774945679862,500.0,0.00032876,120]
[419150148,1774945680137,500.0,0.00032876,120]
[419150149,1774945680361,500.0,0.00032876,120]
[419150150,1774945680586,500.0,0.00032876,120]
[419150151,1774945680834,500.0,0.00032876,120]
[419150152,1774945681092,500.0,0.00032876,120]
[419150153,1774945681339,500.0,0.00032876,120]
[419150154,1774945681567,207.71034204,0.00032876,120]
[419150155,1774945693921,193.1033761,0.000324,120]
[419150156,1774945703458,178.79733308,0.000324,120]
[419150172,1774945773565,166.11096555,0.000324,120]
[419150173,1774945781535,366.45860994,0.000324,120]
[419150174,1774945788285,404.07,0.0003555,120]
[419150175,1774945796759,254.68048007,0.000324,120]
[419150176,1774945802598,199.09516222,0.000324,120]
[419150177,1774945805746,489.86755,0.000324,120]
[419150178,1774945810841,523.45253685,0.000324,120]
[419150179,1774945823764,452.80676269,0.000324,120]
[419150221,1774945832533,-1000.0,0.00013699,2]
[419150223,1774945832542,-186.15207825,0.00022605,2]
[419150225,1774945832552,-441.489,0.00022605,2]
[419150227,1774945832561,-324.7865589,0.00022738,2]
[419150229,1774945832570,-202.0,0.00022859,2]
[419150230,1774945832579,-300.0,0.00022859,2]
[419150232,1774945832588,-410.62195348,0.0002286,2]
[419150235,1774945832598,-307.87018257,0.0002286,2]
[419150237,1774945832609,-729.99458397,0.0002286,2]
[419150239,1774945832619,-1139.47592091,0.0002286,2]
[419150241,1774945832628,-351.85163723,0.0002286,2]
[419150243,1774945832638,-549.21841499,0.0002286,2]
[419150244,1774945832647,-1551.66339087,0.00022873,2]
[419150246,1774945832656,-232.78498206,0.00022965,2]
[419150249,1774945832666,-6530.72924019,0.00022966,2]
[419150252,1774945832678,-2751.07633631,0.00022966,2]
[419150548,1774945838764,-1208.7291331,0.00022966,2]
[419150554,1774945841274,-6000.00000163,0.00022966,2]
[419150589,1774945846687,-32398.21095497,0.00022966,2]
[419150633,1774945847975,-3492.98449047,0.00022966,2]
[419150639,1774945848030,-3343.35704555,0.00022966,2]
[419151419,1774945860602,518.19034658,0.000324,120]
[419151420,1774945875651,821.04462481,0.000324,120]
[419151421,1774945996371,833.38,0.00032876,120]
[419151422,1774945996591,833.38,0.00032876,120]
[419151423,1774945996840,833.38,0.00032876,120]
[419151424,1774945997094,833.38,0.00032876,120]
[419151425,1774945997327,833.38,0.00032876,120]
[419151426,1774945997587,833.38,0.00032876,120]
[419151427,1774945997831,833.38,0.00032876,120]
[419151428,1774945998075,833.38,0.00032876,120]
[419151429,1774945998321,833.38,0.00032876,120]
[419151430,1774946003049,833.38,0.00032876,120]
[419151431,1774946004605,833.38,0.00032876,120]
[419151432,1774946004852,833.38,0.00032876,120]
[419151433,1774946005074,833.38,0.00032876,120]
[419151434,1774946005311,833.38,0.00032876,120]
[419151435,1774946005553,833.38,0.00032876,120]
[419151436,1774946005806,833.38,0.00032876,120]
[419151437,1774946006032,833.38,0.00032876,120]
[419151438,1774946006254,833.38,0.00032876,120]
[419151439,1774946006494,833.38,0.00032876,120]
[419151440,1774946006538,193.10337611,0.000324,120]
[419151441,1774946006719,833.38,0.00032876,120]
[419151442,1774946006936,833.38,0.00032876,120]
[419151443,1774946007153,833.38,0.00032876,120]
[419151444,1774946007435,833.38,0.00032876,120]
[419151445,1774946007673,833.61338062,0.00032876,120]
[419151446,1774946012254,500.0,0.00032876,120]
[419151447,1774946012600,527.90630598,0.00032876,120]
[419151448,1774946016087,178.79733309,0.000324,120]
[419151451,1774946067712,500.0,0.00032876,120]
[419151452,1774946067940,500.0,0.00032876,120]
[419151453,1774946068188,500.0,0.00032876,120]
[419151454,1774946068453,600.49266011,0.00032876,120]
[419151455,1774946076725,500.0,0.00032876,120]
[419151456,1774946087347,166.11096556,0.000324,120]
[419151457,1774946095912,293.16688795,0.000324,120]
[419151458,1774946111443,203.74438406,0.000324,120]
[419151459,1774946116490,199.09516222,0.000324,120]
[419151460,1774946119594,391.89404,0.000324,120]
[419151461,1774946124652,418.76202948,0.000324,120]
[419151462,1774946137571,362.24541016,0.000324,120]
[419151463,1774946139840,300.0,0.0003287,120]
[419151464,1774946149790,500.0,0.00032876,120]
[419151465,1774946150071,553.43291231,0.00032876,120]
[419151466,1774946174640,414.55227727,0.000324,120]
[419151467,1774946189486,656.83569985,0.000324,120]
[419151468,1774946312175,650.0,0.000321,120]
[419151469,1774946318599,193.1033761,0.000324,120]
[419151470,1774946328675,178.79733308,0.000324,120]
[419151472,1774946401088,166.11096555,0.000324,120]
[419151473,1774946410224,234.53351036,0.000324,120]
[419151474,1774946425624,162.99550725,0.000324,120]
[419151475,1774946427866,500.0,0.00032876,120]
[419151476,1774946428113,500.0,0.00032876,120]
[419151477,1774946428381,446.88794449,0.00032876,120]
[419151478,1774946429822,199.09516223,0.000324,120]
[419151479,1774946433825,313.515232,0.000324,120]
[419151480,1774946438425,335.00962358,0.000324,120]
[419151481,1774946451290,289.79632812,0.000324,120]